fUSD/lending_fUSD_20260522
["ID","MTS","AMOUNT","RATE_DAILY","PERIOD"]
[422789534,1779395442000,-277789.98729869,0.00015,2]
[422789493,1779395442000,-1604155.22932702,0.00015,2]
[422789489,1779395442000,-532.0,0.00015,5]
[422789491,1779395442000,-434.0,0.00015,5]
[422789469,1779395442000,-500.0,0.00014999,2]
[422789480,1779395442000,-151.0,0.00014999,2]
[422789545,1779395442000,-2400.1,0.00015,2]
[422789485,1779395442000,-151.0,0.00014999,2]
[422789477,1779395442000,-500.0,0.00014999,2]
[422789479,1779395442000,-151.0,0.00014999,2]
[422789473,1779395442000,-500.0,0.00014999,2]
[422789475,1779395442000,-500.0,0.00014999,2]
[422789482,1779395442000,-151.0,0.00014999,2]
[422789643,1779395443000,-152.0,0.00014767,2]
[422789646,1779395443000,-3744.25979456,0.00015,2]
[422789649,1779395443000,-2589.57115365,0.00015,2]
[422789720,1779395446000,-100367.11887611,0.00015,2]
[422789719,1779395446000,-4546.20399018,0.00015,2]
[422789718,1779395446000,-1297.29867702,0.000147,2]
[422789731,1779395575000,150.0,9.04e-05,7]
[422789732,1779395754000,2753.9,0.00028767,120]
[422789733,1779396053000,963.88,0.00028767,120]
[422789737,1779396342000,152.0,9.062e-05,7]
[422789738,1779396343000,152.0,9.062e-05,7]
[422789739,1779396348000,-271.22312809,0.00012785,2]
[422789740,1779396399000,-260.2,6.457e-05,2]
[422789741,1779396399000,-60.78626387,0.0001266,2]
[422789742,1779396541000,1000.0,0.00028766,120]
[422789743,1779396549000,-1606.06,0.00012647,2]
[422789745,1779396549000,-939.69373613,0.0001266,2]
[422789746,1779396549000,-152.17736134,0.00012685,2]
[422789747,1779396549000,-535.36790253,0.00012785,2]
[422789744,1779396549000,-160.0,0.00012647,2]
[422789816,1779396632000,-300.0,0.00013612,2]
[422789815,1779396632000,-300.0,0.00013612,2]
[422789818,1779396632000,-200.0,0.00013651,2]
[422789817,1779396632000,-999.64,0.00013613,2]
[422789813,1779396632000,-1200.0,0.00013598,2]
[422789810,1779396632000,-183.4,0.00013482,2]
[422789814,1779396632000,-152.17736132,0.000136,2]
[422789812,1779396632000,-166.69,0.00013501,2]
[422789811,1779396632000,-150.0,0.00013488,2]
[422789807,1779396632000,-4314.0636113,0.00013327,2]
[422789798,1779396632000,-1165.25975729,0.00013327,2]
[422789800,1779396632000,-1688.89376,0.00013327,2]
[422789805,1779396632000,-1582.56,0.00013327,2]
[422789774,1779396632000,-280.570408,0.00013085,2]
[422789778,1779396632000,-152.17736132,0.00013143,2]
[422789789,1779396632000,-1800.0,0.00013327,2]
[422789776,1779396632000,-2785.8068585,0.00013085,2]
[422789772,1779396632000,-500.0,0.00013016,2]
[422789784,1779396632000,-7120.7828167,0.00013327,2]
[422789786,1779396632000,-645.55505471,0.00013327,2]
[422789769,1779396632000,-999.64,0.00012965,2]
[422789782,1779396632000,-999.64,0.00013289,2]
[422789780,1779396632000,-150.0,0.00013152,2]
[422789768,1779396632000,-150.0,0.00012809,2]
[422789765,1779396632000,-80.72896938,0.00012785,2]
[422789803,1779396632000,-261.415,0.00013327,2]
[422789819,1779396632000,-219.02920808,0.00013664,2]
[422789808,1779396632000,-1200.0,0.00013481,2]
[422789821,1779396632000,-166.66,0.00013699,2]
[422789846,1779396632000,-500.0,0.00014,2]
[422789847,1779396632000,-500.0,0.00014,2]
[422789845,1779396632000,-500.0,0.00014,2]
[422789844,1779396632000,-215.23956962,0.00013967,2]
[422789843,1779396632000,-999.64,0.00013937,2]
[422789841,1779396632000,-1273.41,0.00013887,2]
[422789840,1779396632000,-1595.49853035,0.00013787,2]
[422789820,1779396632000,-150.0,0.00013698,2]
[422789837,1779396632000,-630.4061,0.000137,2]
[422789839,1779396632000,-5683.6804,0.000137,2]
[422789836,1779396632000,-500.0,0.00013699,2]
[422789838,1779396632000,-615.9508,0.000137,2]
[422789834,1779396632000,-500.0,0.00013699,2]
[422789842,1779396632000,-1595.4985303,0.00013911,2]
[422789832,1779396632000,-500.0,0.00013699,2]
[422789835,1779396632000,-500.0,0.00013699,2]
[422789823,1779396632000,-1000.0,0.00013699,2]
[422789822,1779396632000,-200.0,0.00013699,2]
[422789825,1779396632000,-500.0,0.00013699,2]
[422789824,1779396632000,-500.0,0.00013699,2]
[422789826,1779396632000,-500.0,0.00013699,2]
[422789831,1779396632000,-500.0,0.00013699,2]
[422789829,1779396632000,-500.0,0.00013699,2]
[422789827,1779396632000,-181.36181722,0.00013699,2]
[422789828,1779396632000,-501.82827039,0.00013699,2]
[422789833,1779396632000,-500.0,0.00013699,2]
[422789830,1779396632000,-500.0,0.00013699,2]
[422789889,1779396633000,-500.0,0.00014,2]
[422789881,1779396633000,-500.0,0.00014,2]
[422789888,1779396633000,-500.0,0.00014,2]
[422789884,1779396633000,-500.0,0.00014,2]
[422789885,1779396633000,-500.0,0.00014,2]
[422789876,1779396633000,-500.0,0.00014,2]
[422789886,1779396633000,-500.0,0.00014,2]
[422789883,1779396633000,-500.0,0.00014,2]
[422789882,1779396633000,-500.0,0.00014,2]
[422789879,1779396633000,-500.0,0.00014,2]
[422789890,1779396633000,-500.0,0.00014,2]
[422789887,1779396633000,-500.0,0.00014,2]
[422789904,1779396633000,-500.0,0.00014,2]
[422789892,1779396633000,-500.0,0.00014,2]
[422789893,1779396633000,-500.0,0.00014,2]
[422789895,1779396633000,-500.0,0.00014,2]
[422789894,1779396633000,-500.0,0.00014,2]
[422789896,1779396633000,-500.0,0.00014,2]
[422789897,1779396633000,-500.0,0.00014,2]
[422789900,1779396633000,-500.0,0.00014,2]
[422789902,1779396633000,-500.0,0.00014,2]
[422789899,1779396633000,-500.0,0.00014,2]
[422789901,1779396633000,-500.0,0.00014,2]
[422789898,1779396633000,-500.0,0.00014,2]
[422789903,1779396633000,-500.0,0.00014,2]
[422789873,1779396633000,-500.0,0.00014,2]
[422789891,1779396633000,-500.0,0.00014,2]
[422789875,1779396633000,-500.0,0.00014,2]
[422789864,1779396633000,-500.0,0.00014,2]
[422789871,1779396633000,-500.0,0.00014,2]
[422789853,1779396633000,-500.0,0.00014,2]
[422789848,1779396633000,-619.59,0.00014,2]
[422789854,1779396633000,-500.0,0.00014,2]
[422789906,1779396633000,-500.0,0.00014,2]
[422789851,1779396633000,-500.0,0.00014,2]
[422789849,1779396633000,-500.0,0.00014,2]
[422789850,1779396633000,-500.0,0.00014,2]
[422789852,1779396633000,-500.0,0.00014,2]
[422789856,1779396633000,-500.0,0.00014,2]
[422789857,1779396633000,-500.0,0.00014,2]
[422789858,1779396633000,-500.0,0.00014,2]
[422789859,1779396633000,-500.0,0.00014,2]
[422789874,1779396633000,-500.0,0.00014,2]
[422789860,1779396633000,-500.0,0.00014,2]
[422789861,1779396633000,-500.0,0.00014,2]
[422789865,1779396633000,-500.0,0.00014,2]
[422789866,1779396633000,-500.0,0.00014,2]
[422789867,1779396633000,-500.0,0.00014,2]
[422789863,1779396633000,-500.0,0.00014,2]
[422789869,1779396633000,-500.0,0.00014,2]
[422789868,1779396633000,-500.0,0.00014,2]
[422789872,1779396633000,-500.0,0.00014,2]
[422789877,1779396633000,-500.0,0.00014,2]
[422789878,1779396633000,-500.0,0.00014,2]
[422789870,1779396633000,-500.0,0.00014,2]
[422789880,1779396633000,-494.75,0.00014,2]
[422789862,1779396633000,-500.0,0.00014,2]
[422789907,1779396633000,-500.0,0.00014,2]
[422789855,1779396633000,-500.0,0.00014,2]
[422789910,1779396633000,-500.0,0.00014,2]
[422789942,1779396633000,-500.0,0.00014,2]
[422789939,1779396633000,-500.0,0.00014,2]
[422789950,1779396633000,-500.0,0.00014,2]
[422789941,1779396633000,-500.0,0.00014,2]
[422789944,1779396633000,-500.0,0.00014,2]
[422789945,1779396633000,-500.0,0.00014,2]
[422789946,1779396633000,-500.0,0.00014,2]
[422789948,1779396633000,-500.0,0.00014,2]
[422789943,1779396633000,-500.0,0.00014,2]
[422789947,1779396633000,-500.0,0.00014,2]
[422789949,1779396633000,-500.0,0.00014,2]
[422789951,1779396633000,-500.0,0.00014,2]
[422789954,1779396633000,-500.0,0.00014,2]
[422789953,1779396633000,-500.0,0.00014,2]
[422789956,1779396633000,-500.0,0.00014,2]
[422789959,1779396633000,-500.0,0.00014,2]
[422789963,1779396633000,-500.0,0.00014,2]
[422789955,1779396633000,-500.0,0.00014,2]
[422789957,1779396633000,-500.0,0.00014,2]
[422789961,1779396633000,-500.0,0.00014,2]
[422789958,1779396633000,-500.0,0.00014,2]
[422789960,1779396633000,-526.43,0.00014,2]
[422789962,1779396633000,-500.0,0.00014,2]
[422789965,1779396633000,-500.0,0.00014,2]
[422789964,1779396633000,-500.0,0.00014,2]
[422789966,1779396633000,-500.0,0.00014,2]
[422789905,1779396633000,-500.0,0.00014,2]
[422789940,1779396633000,-500.0,0.00014,2]
[422789937,1779396633000,-500.0,0.00014,2]
[422789952,1779396633000,-500.0,0.00014,2]
[422789932,1779396633000,-500.0,0.00014,2]
[422789938,1779396633000,-500.0,0.00014,2]
[422789909,1779396633000,-500.0,0.00014,2]
[422789912,1779396633000,-500.0,0.00014,2]
[422789911,1779396633000,-500.0,0.00014,2]
[422789908,1779396633000,-500.0,0.00014,2]
[422789913,1779396633000,-500.0,0.00014,2]
[422789914,1779396633000,-500.0,0.00014,2]
[422789915,1779396633000,-500.0,0.00014,2]
[422789916,1779396633000,-500.0,0.00014,2]
[422789918,1779396633000,-500.0,0.00014,2]
[422789921,1779396633000,-500.0,0.00014,2]
[422789919,1779396633000,-500.0,0.00014,2]
[422789922,1779396633000,-500.0,0.00014,2]
[422789920,1779396633000,-500.0,0.00014,2]
[422789917,1779396633000,-500.0,0.00014,2]
[422789929,1779396633000,-500.0,0.00014,2]
[422789923,1779396633000,-500.0,0.00014,2]
[422789935,1779396633000,-500.0,0.00014,2]
[422789934,1779396633000,-500.0,0.00014,2]
[422789933,1779396633000,-500.0,0.00014,2]
[422789931,1779396633000,-500.0,0.00014,2]
[422789927,1779396633000,-500.0,0.00014,2]
[422789930,1779396633000,-500.0,0.00014,2]
[422789926,1779396633000,-500.0,0.00014,2]
[422789928,1779396633000,-500.0,0.00014,2]
[422789925,1779396633000,-500.0,0.00014,2]
[422789924,1779396633000,-500.0,0.00014,2]
[422789936,1779396633000,-500.0,0.00014,2]
[422790013,1779396634000,-500.0,0.00014252,5]
[422790005,1779396634000,-500.0,0.00014252,5]
[422790009,1779396634000,-500.0,0.00014252,5]
[422790008,1779396634000,-500.0,0.00014252,5]
[422790007,1779396634000,-500.0,0.00014252,5]
[422790016,1779396634000,-500.0,0.00014252,5]
[422790000,1779396634000,-1000.48,0.00014243,2]
[422790004,1779396634000,-500.0,0.00014252,5]
[422790001,1779396634000,-500.0,0.00014251,2]
[422789998,1779396634000,-600.0,0.000142,5]
[422789997,1779396634000,-500.0,0.00014178,2]
[422790011,1779396634000,-500.0,0.00014252,5]
[422790006,1779396634000,-500.0,0.00014252,5]
[422790012,1779396634000,-500.0,0.00014252,5]
[422790028,1779396634000,-166.66,0.00014384,2]
[422790010,1779396634000,-500.0,0.00014252,5]
[422790014,1779396634000,-500.0,0.00014252,5]
[422790017,1779396634000,-500.0,0.00014252,5]
[422790018,1779396634000,-575.22690469,0.00014252,5]
[422790019,1779396634000,-500.0,0.00014252,5]
[422790024,1779396634000,-1595.4985303,0.00014282,2]
[422790025,1779396634000,-1000.0,0.000143,5]
[422790022,1779396634000,-338.38473552,0.00014252,5]
[422790021,1779396634000,-500.0,0.00014252,5]
[422790026,1779396634000,-600.0,0.000143,5]
[422790023,1779396634000,-999.64,0.00014261,2]
[422790020,1779396634000,-500.0,0.00014252,5]
[422789996,1779396634000,-500.0,0.00014178,2]
[422790015,1779396634000,-500.0,0.00014252,5]
[422789995,1779396634000,-500.0,0.00014178,2]
[422789975,1779396634000,-500.0,0.00014,2]
[422789994,1779396634000,-500.0,0.00014178,2]
[422789967,1779396634000,-500.0,0.00014,2]
[422790027,1779396634000,-593.1479015,0.00014349,2]
[422789976,1779396634000,-500.0,0.00014,2]
[422789969,1779396634000,-487.26,0.00014,2]
[422789973,1779396634000,-500.0,0.00014,2]
[422789972,1779396634000,-500.0,0.00014,2]
[422789970,1779396634000,-500.0,0.00014,2]
[422789968,1779396634000,-500.0,0.00014,2]
[422789971,1779396634000,-500.0,0.00014,2]
[422789974,1779396634000,-500.0,0.00014,2]
[422789977,1779396634000,-500.0,0.00014,2]
[422789989,1779396634000,-500.0,0.00014178,2]
[422789979,1779396634000,-250.0,0.00014,2]
[422789978,1779396634000,-245.6,0.00014,2]
[422789980,1779396634000,-1595.4985303,0.00014034,2]
[422789984,1779396634000,-215.57471839,0.00014142,2]
[422789982,1779396634000,-300.0,0.000141,5]
[422789981,1779396634000,-163.19,0.00014059,2]
[422789983,1779396634000,-200.0,0.000141,5]
[422789987,1779396634000,-150.0,0.00014178,2]
[422789988,1779396634000,-227.91888578,0.00014178,2]
[422789985,1779396634000,-1595.4985303,0.00014158,2]
[422789986,1779396634000,-150.0,0.00014178,2]
[422789990,1779396634000,-500.0,0.00014178,2]
[422789992,1779396634000,-500.0,0.00014178,2]
[422789991,1779396634000,-500.0,0.00014178,2]
[422790002,1779396634000,-500.0,0.00014251,2]
[422790003,1779396634000,-500.0,0.00014252,5]
[422789993,1779396634000,-500.0,0.00014178,2]
[422789999,1779396634000,-400.0,0.000142,5]
[422790029,1779396634000,-1300.0,0.000144,5]
[422790037,1779396634000,-166.69,0.00014615,2]
[422790041,1779396634000,-300.0,0.000147,5]
[422790066,1779396634000,-525.68090872,0.00014889,2]
[422790065,1779396634000,-500.0,0.00014889,2]
[422790067,1779396634000,-500.0,0.00014889,2]
[422790069,1779396634000,-33907.3473777,0.0001489,2]
[422790080,1779396634000,-420.0,0.00014919,2]
[422790068,1779396634000,-500.0,0.00014889,2]
[422790079,1779396634000,-584.0,0.00014903,2]
[422790070,1779396634000,-6481.42907501,0.000149,3]
[422790073,1779396634000,-300.0,0.000149,5]
[422790078,1779396634000,-16831.60966282,0.000149,2]
[422790072,1779396634000,-317.16061007,0.000149,2]
[422790075,1779396634000,-1595.4985303,0.000149,2]
[422790071,1779396634000,-25000.0,0.000149,3]
[422790074,1779396634000,-533.75437257,0.000149,2]
[422790076,1779396634000,-5191.05055992,0.000149,2]
[422790031,1779396634000,-1595.4985303,0.00014405,2]
[422790081,1779396634000,-300.0,0.00014919,2]
[422790082,1779396634000,-221.0,0.00014923,2]
[422790087,1779396634000,-500.0,0.00014992,2]
[422790085,1779396634000,-151.0,0.0001499,2]
[422790091,1779396634000,-11198.0364579,0.00014993,2]
[422790084,1779396634000,-615.0,0.00014976,2]
[422790090,1779396634000,-67835.11747,0.00014993,2]
[422790089,1779396634000,-500.0,0.00014992,2]
[422790083,1779396634000,-153.12137068,0.00014925,2]
[422790088,1779396634000,-500.0,0.00014992,2]
[422790086,1779396634000,-500.0,0.00014992,2]
[422790092,1779396634000,-3222.3437843,0.00014993,2]
[422790093,1779396634000,-4062.1568396,0.00014993,2]
[422790063,1779396634000,-533.75437257,0.00014885,2]
[422790064,1779396634000,-151.0,0.00014887,2]
[422790077,1779396634000,-200.0,0.000149,5]
[422790059,1779396634000,-364.0,0.00014848,2]
[422790061,1779396634000,-533.75437257,0.0001487,2]
[422790032,1779396634000,-1600.0,0.000145,5]
[422790036,1779396634000,-200.0,0.000146,5]
[422790034,1779396634000,-1595.4985303,0.00014529,2]
[422790040,1779396634000,-1513.51512319,0.000147,2]
[422790039,1779396634000,-224.392499,0.00014693,2]
[422790033,1779396634000,-1000.0,0.000145,5]
[422790035,1779396634000,-300.0,0.000146,5]
[422790038,1779396634000,-1595.4985303,0.00014653,2]
[422790030,1779396634000,-800.0,0.000144,5]
[422790042,1779396634000,-185.048023,0.000147,2]
[422790044,1779396634000,-200.0,0.000147,5]
[422790047,1779396634000,-720.22,0.00014789,2]
[422790045,1779396634000,-174.074182,0.000147,2]
[422790043,1779396634000,-282.811387,0.000147,2]
[422790049,1779396634000,-9074.96841942,0.00014799,2]
[422790058,1779396634000,-9074.96841934,0.00014844,2]
[422790062,1779396634000,-200.0,0.0001488,2]
[422790060,1779396634000,-533.75437257,0.00014855,2]
[422790046,1779396634000,-1595.4985303,0.00014776,2]
[422790057,1779396634000,-9074.96841934,0.00014833,2]
[422790055,1779396634000,-9074.96841934,0.00014821,2]
[422790056,1779396634000,-1680.0,0.00014829,2]
[422790051,1779396634000,-200.0,0.000148,5]
[422790050,1779396634000,-300.0,0.000148,5]
[422790052,1779396634000,-9074.96841934,0.0001481,2]
[422790053,1779396634000,-251.0,0.00014819,2]
[422790048,1779396634000,-167.319,0.00014795,2]
[422790054,1779396634000,-255.0,0.00014821,2]
[422790098,1779396635000,-1097.29439826,0.00014999,5]
[422790095,1779396635000,-1424.9615766,0.00014993,2]
[422790094,1779396635000,-43275.6679077,0.00014993,2]
[422790105,1779396635000,-670.58560358,0.00014999,2]
[422790096,1779396635000,-281.20309845,0.00014997,2]
[422790106,1779396635000,-684.0,0.00015,5]
[422790097,1779396635000,-1097.29439826,0.00014999,5]
[422790100,1779396635000,-500.0,0.00014999,2]
[422790107,1779396635000,-546.0,0.00015,5]
[422790102,1779396635000,-500.0,0.00014999,2]
[422790099,1779396635000,-1097.29439826,0.00014999,5]
[422790104,1779396635000,-485.89771843,0.00014999,2]
[422790103,1779396635000,-264.26840175,0.00014999,2]
[422790108,1779396635000,-108187.79690906,0.00015,2]
[422790109,1779396635000,-2661.93819448,0.00015,2]
[422790111,1779396635000,-35368.37694789,0.00015,2]
[422790110,1779396635000,-42340.32825364,0.00015,2]
[422790101,1779396635000,-435.22683174,0.00014999,2]
[422790130,1779396638000,-500.0,0.00014992,2]
[422790131,1779396638000,-500.0,0.00014992,2]
[422790132,1779396638000,-500.0,0.00014992,2]
[422790133,1779396638000,-500.0,0.00014992,2]
[422790134,1779396638000,-500.0,0.00014992,2]
[422790129,1779396638000,-500.0,0.00014992,2]
[422790135,1779396638000,-500.0,0.00014992,2]
[422790128,1779396638000,-500.0,0.00014992,2]
[422790122,1779396638000,-500.0,0.00014992,2]
[422790127,1779396638000,-500.0,0.00014992,2]
[422790126,1779396638000,-500.0,0.00014992,2]
[422790125,1779396638000,-500.0,0.00014992,2]
[422790124,1779396638000,-500.0,0.00014992,2]
[422790123,1779396638000,-500.0,0.00014992,2]
[422790121,1779396638000,-955.64410926,0.000149,3]
[422790120,1779396638000,-9074.96841934,0.00014855,2]
[422790119,1779396638000,-1009.01008213,0.000147,2]
[422790137,1779396638000,-500.0,0.00014992,2]
[422790136,1779396638000,-500.0,0.00014992,2]
[422790147,1779396638000,-500.0,0.00014992,2]
[422790139,1779396638000,-500.0,0.00014992,2]
[422790157,1779396638000,-1280.13131938,0.00014866,2]
[422790154,1779396638000,-3313.65792298,0.00015,2]
[422790153,1779396638000,-1818896.62700002,0.00015,2]
[422790151,1779396638000,-500.0,0.00014992,2]
[422790152,1779396638000,-500.0,0.00014992,2]
[422790156,1779396638000,-1221.94,0.00014866,2]
[422790155,1779396638000,-1390.563603,0.00014866,2]
[422790149,1779396638000,-500.0,0.00014992,2]
[422790148,1779396638000,-500.0,0.00014992,2]
[422790146,1779396638000,-500.0,0.00014992,2]
[422790145,1779396638000,-500.0,0.00014992,2]
[422790144,1779396638000,-610.0,0.00014992,2]
[422790150,1779396638000,-500.0,0.00014992,2]
[422790141,1779396638000,-500.0,0.00014992,2]
[422790143,1779396638000,-500.0,0.00014992,2]
[422790142,1779396638000,-500.0,0.00014992,2]
[422790140,1779396638000,-500.0,0.00014992,2]
[422790138,1779396638000,-500.0,0.00014992,2]
[422790163,1779396640000,-693.27386168,0.00014866,2]
[422790166,1779396640000,-685.49267837,0.00014866,2]
[422790164,1779396640000,-459.67,0.000147,2]
[422790165,1779396640000,-213.00338809,0.000147,2]
[422790179,1779396643000,-6313.36930349,0.00014878,2]
[422790177,1779396643000,-35.66514043,0.00014866,2]
[422790178,1779396643000,-3767.90181648,0.00014866,2]
[422790183,1779396646000,-2623.95195875,0.00015,2]
[422790181,1779396646000,-448.4489254,0.000147,2]
[422790182,1779396646000,-2761.59911585,0.00014878,2]
[422790184,1779396647000,-30.13590312,0.00015,2]
[422790186,1779396651000,152.0,9.044e-05,7]
[422790187,1779396652000,152.0,9.062e-05,7]
[422790192,1779397246000,152.0,9.064e-05,7]
[422790193,1779397247000,152.0,9.064e-05,7]
[422790194,1779397569000,223.48,0.00028767,120]
[422790196,1779397613000,-183.4,0.00013427,2]
[422790198,1779397613000,-202.83055927,0.00013502,2]
[422790195,1779397613000,-200.0,0.00013405,2]
[422790199,1779397613000,-150.0,0.00013503,2]
[422790197,1779397613000,-200.87728,0.00013434,2]
[422790200,1779397613000,-734.17,0.00013536,2]
[422790201,1779397613000,-486.8,0.00013548,2]
[422790204,1779397613000,-160.0,0.0001367,2]
[422790203,1779397613000,-491.9,0.00013644,2]
[422790205,1779397613000,-459.46496693,0.00013699,2]
[422790202,1779397613000,-406.1017,0.00013597,2]
[422790208,1779397740000,1000.0,0.00028766,120]
[422790210,1779397762000,10000.0,0.00028767,120]
[422790228,1779397832000,-371.35484221,0.000135,2]
[422790229,1779397832000,-167.20515779,0.000135,2]
[422790230,1779397832000,-152.91884221,0.00013686,2]
[422790232,1779397832000,-483.96697237,0.00013686,2]
[422790233,1779397832000,-346.25191124,0.00013686,2]
[422790234,1779397832000,-0.02408876,0.00013699,2]
[422790235,1779397832000,-284.97591124,0.00013699,2]
[422790236,1779397832000,-150.0,0.00013699,2]
[422790227,1779397832000,-706.5,0.000135,2]
[422790239,1779397832000,-446.82363981,0.000137,2]
[422790238,1779397832000,-137.97591124,0.00013699,2]
[422790242,1779397832000,-412.77728069,0.000137,2]
[422790241,1779397832000,-1191.33537784,0.000137,2]
[422790240,1779397832000,-638.90471485,0.000137,2]
[422790244,1779397832000,-107013.03118028,0.000137,2]
[422790243,1779397832000,-2802.47767811,0.000137,2]
[422790245,1779397832000,-387.105,0.000137,2]
[422790237,1779397832000,-1062.02408876,0.00013699,2]
[422790263,1779397838000,-2200.0,0.000143,5]
[422790260,1779397838000,-706.5,0.00014175,2]
[422790268,1779397838000,-700.0,0.000146,5]
[422790265,1779397838000,-3000.0,0.000144,5]
[422790264,1779397838000,-166.85,0.00014346,2]
[422790261,1779397838000,-1500.0,0.000142,5]
[422790262,1779397838000,-500.0,0.00014251,2]
[422790259,1779397838000,-700.0,0.000141,5]
[422790256,1779397838000,-2500.0,0.000138,2]
[422790257,1779397838000,-706.5,0.00013837,2]
[422790255,1779397838000,-182.82,0.00013738,2]
[422790258,1779397838000,-208.68854764,0.0001396,2]
[422790270,1779397838000,-1504.06839012,0.00014679,2]
[422790252,1779397838000,-11742.084,0.000137,2]
[422790251,1779397838000,-3768.46006928,0.000137,2]
[422790250,1779397838000,-4055.99105914,0.000137,2]
[422790249,1779397838000,-811.22,0.000135,2]
[422790254,1779397838000,-215.23956962,0.00013715,2]
[422790266,1779397838000,-3700.0,0.000145,5]
[422790253,1779397838000,-119417.7073,0.000137,2]
[422790269,1779397838000,-1504.06839013,0.00014642,2]
[422790293,1779397838000,-500.0,0.00014793,2]
[422790292,1779397838000,-500.0,0.00014793,2]
[422790290,1779397838000,-500.0,0.00014793,2]
[422790291,1779397838000,-500.0,0.00014793,2]
[422790288,1779397838000,-500.24695847,0.00014793,2]
[422790289,1779397838000,-500.0,0.00014793,2]
[422790285,1779397838000,-25000.0,0.00014777,3]
[422790287,1779397838000,-25000.0,0.00014786,3]
[422790283,1779397838000,-25000.0,0.00014768,3]
[422790267,1779397838000,-706.5,0.00014512,2]
[422790282,1779397838000,-8921.12207214,0.00014762,2]
[422790278,1779397838000,-1504.06839012,0.00014753,2]
[422790280,1779397838000,-25000.0,0.00014759,3]
[422790273,1779397838000,-1504.06839012,0.00014716,2]
[422790272,1779397838000,-700.0,0.000147,5]
[422790274,1779397838000,-8921.1220722,0.00014722,2]
[422790275,1779397838000,-8921.12207214,0.00014742,2]
[422790271,1779397838000,-635.3026443,0.000147,2]
[422790286,1779397838000,-8921.12207214,0.00014781,2]
[422790326,1779397839000,-500.0,0.00014793,2]
[422790327,1779397839000,-500.0,0.00014793,2]
[422790329,1779397839000,-500.0,0.00014793,2]
[422790328,1779397839000,-500.0,0.00014793,2]
[422790330,1779397839000,-500.0,0.00014793,2]
[422790332,1779397839000,-500.0,0.00014793,2]
[422790334,1779397839000,-25000.0,0.00014794,3]
[422790335,1779397839000,-1108.6325863,0.00014796,2]
[422790333,1779397839000,-500.0,0.00014793,2]
[422790336,1779397839000,-700.0,0.000148,5]
[422790324,1779397839000,-500.0,0.00014793,2]
[422790339,1779397839000,-25000.0,0.00014812,3]
[422790337,1779397839000,-8921.12207214,0.00014801,2]
[422790340,1779397839000,-25000.0,0.00014821,3]
[422790338,1779397839000,-25000.0,0.00014803,3]
[422790342,1779397839000,-576.176,0.00014822,2]
[422790331,1779397839000,-500.0,0.00014793,2]
[422790325,1779397839000,-500.0,0.00014793,2]
[422790320,1779397839000,-500.0,0.00014793,2]
[422790322,1779397839000,-500.0,0.00014793,2]
[422790294,1779397839000,-500.0,0.00014793,2]